fUSD/lending_fUSD_20251105
["ID","MTS","AMOUNT","RATE_DAILY","PERIOD"]
[393202280,1762314632022,-166.66,0.00016214,2]
[393202281,1762314632032,-1680.0,0.00016415,2]
[393202282,1762314632042,-1680.0,0.00016498,2]
[393202283,1762314632051,-272.19370628,0.00016499,2]
[393202284,1762314632061,-250.0,0.00016499,2]
[393202285,1762314632070,-300.0,0.00016499,2]
[393202286,1762314632080,-300.0,0.00016499,2]
[393202287,1762314632090,-300.0,0.00016499,2]
[393202288,1762314632099,-300.0,0.00016499,2]
[393202289,1762314632109,-200.56676977,0.00016499,2]
[393202290,1762314632118,-166.66,0.00016555,2]
[393202292,1762314632128,-406.62378491,0.00016625,2]
[393202294,1762314632137,-500.0,0.00016625,2]
[393202296,1762314632147,-500.73396211,0.0001678,2]
[393202298,1762314632156,-166.66,0.00016896,2]
[393202300,1762314632168,-222.67209339,0.00016979,2]
[393202302,1762314632177,-506.43722381,0.00016979,2]
[393202304,1762314632186,-500.0,0.00016979,2]
[393202306,1762314632195,-250.0,0.00017,2]
[393202308,1762314632205,-178.91,0.00017033,2]
[393202310,1762314632214,-1000.0,0.00017173,2]
[393202312,1762314632223,-500.0,0.00017209,2]
[393202314,1762314632233,-166.66,0.00017238,2]
[393202316,1762314632242,-252.73130199,0.00017279,2]
[393202318,1762314632252,-500.0,0.00017279,2]
[393202319,1762314632261,-500.0,0.00017279,2]
[393202320,1762314632270,-500.0,0.00017279,2]
[393202321,1762314632279,-501.70104334,0.00017279,2]
[393202322,1762314632288,-500.0,0.00017279,2]
[393202323,1762314632298,-695.78612981,0.00017527,2]
[393202324,1762314632307,-14093.64,0.00017534,2]
[393202325,1762314632316,-166.66,0.00017579,2]
[393202326,1762314632326,-1500.0,0.00017721,2]
[393202327,1762314632335,-1000.0,0.00017757,2]
[393202328,1762314632345,-1000.0,0.00017827,2]
[393202329,1762314632354,-605.78717603,0.00017827,2]
[393202331,1762314632363,-1000.0,0.00017827,2]
[393202332,1762314632372,-1007.55313772,0.00017827,2]
[393202333,1762314632382,-166.66,0.0001792,2]
[393202334,1762314632391,-2351.0,0.00017965,2]
[393202335,1762314632400,-1000.0,0.00017998,2]
[393202336,1762314632409,-500.0,0.00017999,2]
[393202337,1762314632418,-999.99,0.00017999,2]
[393202338,1762314632427,-9999.99,0.00017999,2]
[393202339,1762314632436,-8300.35,0.00017999,2]
[393202340,1762314632445,-50988.42,0.00017999,2]
[393202341,1762314632454,-9999.99,0.00017999,2]
[393202342,1762314632464,-12786.76,0.00018067,2]
[393202343,1762314632472,-2351.0,0.00018148,2]
[393202344,1762314632481,-2000.0,0.00018269,2]
[393202345,1762314632491,-1500.0,0.00018305,2]
[393202346,1762314632500,-434.82891702,0.00018375,2]
[393202347,1762314632509,-1500.0,0.00018375,2]
[393202348,1762314632519,-273.67037021,0.00018655,2]
[393202349,1762314632528,-237.23661618,0.00018655,2]
[393202350,1762314632536,-270.38680199,0.00018666,2]
[393202351,1762314632545,-500.0,0.00018666,2]
[393202352,1762314632554,-500.0,0.00018666,2]
[393202353,1762314632563,-337.25143736,0.00018666,2]
[393202354,1762314632572,-500.0,0.00018666,2]
[393202355,1762314632582,-204.13904859,0.00018666,2]
[393202356,1762314632591,-150.99,0.00018667,2]
[393202357,1762314632600,-1451.97,0.00018667,2]
[393202358,1762314632610,-3577.32,0.00018667,2]
[393202359,1762314632618,-1719.15,0.00018667,2]
[393202360,1762314632627,-150.99,0.00018667,2]
[393202361,1762314632636,-499.99,0.00018667,2]
[393202362,1762314632646,-1167.81,0.00018667,2]
[393202363,1762314632655,-9999.99,0.00018667,2]
[393202364,1762314632663,-9999.99,0.00018667,2]
[393202365,1762314632672,-1589.6,0.00018667,2]
[393202366,1762314632681,-9999.99,0.00018667,2]
[393202367,1762314632690,-299.99,0.00018667,4]
[393202368,1762314632699,-41195.69626579,0.00018667,2]
[393202369,1762314632712,-4924.86373421,0.00018667,2]
[393202370,1762314632722,-402.57,0.00018667,2]
[393202371,1762314632731,-9999.99,0.00018667,2]
[393202372,1762314632740,-517.76451351,0.00018817,2]
[393202373,1762314632751,-575.75,0.00018817,2]
[393202374,1762314632766,-1124.99550637,0.00018817,2]
[393202375,1762314632776,-281.48998012,0.00018817,2]
[393202376,1762314632785,-2000.0,0.00018853,2]
[393202377,1762314632794,-160.95000988,0.00018903,2]
[393202378,1762314632806,-117.86999012,0.00018903,2]
[393202379,1762314632816,-250.0,0.00018907,2]
[393202380,1762314632825,-520.27622216,0.00018923,2]
[393202381,1762314632838,-1482.73292176,0.00018923,2]
[393202382,1762314632847,-1040.71,0.00018947,2]
[393202383,1762314632856,-999.0,0.00019149,3]
[393202384,1762314632865,-822.11159326,0.00019365,2]
[393202385,1762314632877,-1895.5,0.00019365,2]
[393202386,1762314632895,-282.38840674,0.00019365,2]
[393202387,1762314632904,-936.66704645,0.00019401,2]
[393202388,1762314632915,-453.90225497,0.00019401,2]
[393202389,1762314632925,-616.81821269,0.00019401,2]
[393202390,1762314632938,-178.91,0.00019466,2]
[393202391,1762314632947,-500.0,0.00019486,2]
[393202392,1762314632958,-500.0,0.00019486,2]
[393202393,1762314632969,-500.0,0.00019486,2]
[393202394,1762314632978,-500.0,0.00019486,2]
[393202395,1762314632987,-500.0,0.00019592,2]
[393202396,1762314632998,-500.0,0.00019592,2]
[393202397,1762314633008,-158.0,0.00019662,2]
[393202398,1762314633018,-501.65143851,0.00019688,2]
[393202399,1762314633027,-500.0,0.0001972,2]
[393202400,1762314633038,-281.38814156,0.00019807,2]
[393202401,1762314633047,-500.0,0.0001982,2]
[393202402,1762314633056,-200.0,0.00019855,2]
[393202403,1762314633066,-1164.41538619,0.00019913,2]
[393202404,1762314633079,-712.88799562,0.00019913,2]
[393202409,1762314637685,-337.263,0.00018666,2]
[393202410,1762314637696,-162.737,0.00018666,2]
[393202411,1762314637705,-150.0,0.00018666,2]
[393202412,1762314637716,-150.0,0.00018666,2]
[393202413,1762314637725,-500.0,0.00018803,2]
[393202414,1762314637734,-150.0,0.00018803,2]
[393202415,1762314637744,-500.0,0.0001894,2]
[393202416,1762314637753,-154.41907162,0.0001894,2]
[393202417,1762314637762,-214.94863932,0.00019077,2]
[393202418,1762314637772,-787.95759402,0.00019913,2]
[393202419,1762314637781,-278.82,0.00019953,2]
[393202420,1762314637790,-152.38486745,0.00019962,2]
[393202421,1762314637802,-324.61513255,0.00019962,2]
[393202422,1762314637811,-58.38486745,0.00019971,2]
[393202423,1762314637857,-354.3250691,0.00019971,2]
[393202424,1762314637869,-87.29006345,0.00019971,2]
[393202425,1762314637878,-434.57343521,0.00019971,2]
[393202426,1762314637907,-65.42656479,0.00019971,2]
[393202427,1762314637916,-479.41748092,0.00019971,2]
[393202442,1762314639796,-154.17848018,0.00018666,2]
[393202443,1762314639806,-162.35889361,0.00018666,2]
[393202444,1762314639816,-20.58251908,0.00019971,2]
[393202445,1762314639825,-161.27255273,0.00019971,2]
[393202446,1762314639835,-150.0,0.00019971,2]
[393202447,1762314639845,-160.29212742,0.00019971,2]
[393202448,1762314639859,-500.0,0.00019971,2]
[393202449,1762314639869,-500.0,0.00019971,2]
[393202450,1762314639880,-353.80511689,0.00019971,2]
[393202451,1762314639892,-146.19488311,0.00019971,2]
[393202452,1762314639902,-877.75511689,0.00020034,2]
[393202453,1762314639914,-122.24488311,0.00020034,2]
[393202454,1762314639923,-433.15511689,0.00020034,2]
[393202455,1762314639935,-568.18513369,0.00020034,2]
[393202456,1762314639944,-221.7748663,0.00020034,2]
[393202457,1762314640266,-1.7e-07,0.00020034,2]
[393202458,1762314640335,-778.22513353,0.00020034,2]
[393202459,1762314640345,-1000.0,0.00020034,2]
[393202460,1762314640355,-500.0,0.00020046,2]
[393202461,1762314640365,-500.0,0.00020046,2]
[393202462,1762314640375,-200.0,0.00020046,2]
[393202463,1762314640385,-500.0,0.00020046,2]
[393202464,1762314640394,-500.0,0.00020046,2]
[393202465,1762314640404,-171.37286122,0.0002014,2]
[393202466,1762314640412,-470.40200525,0.0002014,2]
[393202467,1762314640430,-529.59799475,0.0002014,2]
[393202468,1762314640440,-875.11589732,0.00020268,2]
[393202469,1762314640449,-1000.0,0.00020355,2]
[393202470,1762314640458,-78.6433549,0.00020368,2]
[393202471,1762314640473,-586.97564446,0.00020368,2]
[393202472,1762314640484,-253.80940278,0.00020368,2]
[393202473,1762314640494,-1000.0,0.00020519,2]
[393202474,1762314640503,-1000.0,0.00020519,2]
[393202475,1762314640512,-1000.0,0.00020519,2]
[393202476,1762314640522,-150.0,0.00020519,2]
[393202477,1762314640531,-1000.0,0.00020519,2]
[393202478,1762314640541,-1000.0,0.00020519,2]
[393202479,1762314640550,-1000.0,0.00020519,2]
[393202480,1762314640559,-1197.03833275,0.00020582,2]
[393202481,1762314640569,-1521.19557868,0.00020582,2]
[393202482,1762314640578,-1002.7350988,0.00020594,2]
[393202483,1762314640589,-1000.0,0.00020594,2]
[393202484,1762314640599,-568.88126658,0.00020594,2]
[393202485,1762314640608,-1000.0,0.00020594,2]
[393202486,1762314640617,-1500.0,0.00020688,2]
[393202487,1762314640626,-400.0,0.00020731,2]
[393202488,1762314640635,-500.0,0.00020783,2]
[393202489,1762314640644,-1639.3,0.00020858,2]
[393202490,1762314640654,-286.29911607,0.00020858,2]
[393202491,1762314640663,-500.0,0.00020873,2]
[393202492,1762314640672,-476.03838915,0.00020873,2]
[393202493,1762314640880,-554.9128886,0.00020873,2]
[393202494,1762314640890,-503.15659393,0.00020873,2]
[393202495,1762314640900,-504.25926664,0.00020873,2]
[393202496,1762314640909,-278.82,0.00021003,2]
[393202497,1762314640919,-835.28782789,0.00021066,2]
[393202498,1762314640929,-1500.0,0.00021066,2]
[393202499,1762314640939,-1500.0,0.00021066,2]
[393202500,1762314640949,-150.0,0.00021066,2]
[393202501,1762314640961,-1500.0,0.00021066,2]
[393202502,1762314640971,-1500.0,0.00021066,2]
[393202503,1762314640979,-1289.26333301,0.00021066,2]
[393202504,1762314640988,-500.0,0.00021117,2]
[393202505,1762314640997,-500.0,0.00021117,2]
[393202506,1762314641007,-158.25209266,0.00021117,2]
[393202507,1762314641017,-505.04241582,0.00021117,2]
[393202508,1762314641026,-1000.0,0.00021118,2]
[393202509,1762314641037,-1639.3,0.00021132,2]
[393202510,1762314641046,-1500.0,0.00021142,2]
[393202511,1762314641055,-2000.0,0.00021236,2]
[393202512,1762314641065,-1639.3,0.00021406,2]
[393202513,1762314641074,-600.0,0.00021416,2]
[393202514,1762314641085,-1000.0,0.00021421,2]
[393202515,1762314641094,-300.08700211,0.00021614,2]
[393202516,1762314641103,-2000.0,0.00021614,2]
[393202517,1762314641112,-216.03107045,0.00021614,2]
[393202518,1762314641121,-2000.0,0.00021614,2]
[393202519,1762314641130,-2000.0,0.00021614,2]
[393202520,1762314641139,-1639.3,0.0002168,2]
[393202521,1762314641148,-1021.05467729,0.0002169,2]
[393202522,1762314641157,-2500.0,0.00021783,2]
[393202523,1762314641167,-1000.0,0.00021881,2]
[393202524,1762314641177,-178.91,0.00021899,2]
[393202525,1762314641186,-500.0,0.00021917,2]
[393202526,1762314641195,-1639.3,0.00021954,2]
[393202527,1762314641205,-632.68205004,0.00021968,2]
[393202528,1762314641214,-164.7,0.00022,2]
[393202529,1762314641223,-278.82,0.00022053,2]
[393202530,1762314641232,-898.16663957,0.00022101,2]
[393202531,1762314641242,-1003.08224355,0.00022162,2]
[393202532,1762314641251,-500.0,0.00022162,2]
[393202533,1762314641259,-1517.24613966,0.00022162,2]
[393202534,1762314641269,-502.0,0.00022192,2]
[393202535,1762314641279,-1639.3,0.00022228,2]
[393202536,1762314641288,-500.0,0.00022326,2]
[393202537,1762314641297,-500.0,0.00022326,2]
[393202538,1762314641306,-18289.52580459,0.00022327,2]
[393202539,1762314641316,-1003.52929673,0.00022331,2]
[393202540,1762314641326,-1639.3,0.00022502,2]
[393202541,1762314641335,-1000.0,0.00022645,2]
[393202542,1762314641344,-1639.3,0.00022776,2]
[393202543,1762314641353,-1639.3,0.0002305,2]
[393202544,1762314641362,-278.82,0.00023103,2]
[393202545,1762314641372,-2000.0,0.00023178,2]
[393202546,1762314641381,-150.0,0.0002321,2]
[393202547,1762314641390,-1639.3,0.00023324,2]
[393202548,1762314641401,-1000.0,0.00023408,2]
[393202549,1762314641410,-2751.0,0.00023434,2]
[393202550,1762314641419,-1639.3,0.00023598,2]
[393202551,1762314641428,-353.96720107,0.00023758,2]
[393202552,1762314641437,-606.91804468,0.0002381,2]
[393202553,1762314641446,-1639.34432609,0.00023872,2]
[393202554,1762314641455,-164.7,0.0002403,2]
[393202555,1762314641464,-278.82,0.00024153,2]
[393202556,1762314641474,-13052.46872369,0.000247,2]
[393202557,1762314641483,-15907.2637377,0.000248,3]
[393202558,1762314641492,-500.0,0.00024932,2]
[393202559,1762314641501,-500.0,0.00024932,2]
[393202560,1762314641510,-500.0,0.00024932,2]
[393202561,1762314641518,-500.0,0.00024932,2]
[393202562,1762314641527,-1099.96,0.00025,2]
[393202563,1762314641536,-278.82,0.00025203,2]
[393202564,1762314641546,-1099.96,0.000255,2]
[393202565,1762314641555,-477.76462643,0.00025858,2]
[393202566,1762314641564,-1099.96,0.00026,30]
[393202567,1762314641573,-164.7,0.0002606,7]
[393202568,1762314641584,-13052.46872369,0.00026193,2]
[393202569,1762314641593,-278.82,0.00026254,2]
[393202570,1762314641603,-15907.2637377,0.00026542,3]
[393202571,1762314641611,-542.0,0.00026603,2]
[393202572,1762314641620,-278.82,0.00027304,2]
[393202573,1762314641630,-300.0,0.00027397,2]
[393202574,1762314641639,-689.1,0.00027671,30]
[393202575,1762314641649,-13052.46872369,0.00027687,2]
[393202576,1762314641658,-193.14,0.00028036,2]
[393202577,1762314641669,-185.05,0.00028038,2]
[393202578,1762314641678,-164.7,0.0002809,30]
[393202579,1762314641687,-278.82,0.00028354,2]
[393202580,1762314641696,-155.02,0.00028963,2]
[393202581,1762314641706,-1660.41,0.00029009,2]
[393202582,1762314641714,-14284.94,0.00029009,2]
[393202583,1762314641723,-152.0,0.00029065,3]
[393202584,1762314641732,-13052.46872369,0.0002918,2]
[393202585,1762314641742,-15907.2637377,0.00029795,3]
[393202586,1762314641751,-383.63882527,0.00029808,15]
[393202587,1762314641761,-152.0,0.00029909,4]
[393202588,1762314641770,-164.7,0.00030137,30]
[393202589,1762314641779,-310.04,0.00030657,2]
[393202590,1762314641788,-13052.46872369,0.00030674,2]
[393202591,1762314641798,-329.03,0.00030685,30]
[393202592,1762314641807,-383.63882527,0.00030734,15]
[393202593,1762314641816,-152.0,0.00030752,5]
[393202594,1762314641825,-193.79,0.00030925,2]
[393202595,1762314641836,-158.0,0.00031,31]
[393202596,1762314641846,-157.13,0.00031,31]
[393202597,1762314641855,-341.177,0.00031356,29]
[393202598,1762314641864,-6114.35,0.00031356,29]
[393202599,1762314641874,-152.0,0.00031596,6]
[393202600,1762314641883,-383.63882527,0.0003166,15]
[393202601,1762314641893,-5515.0,0.000318,3]
[393202602,1762314641902,-15907.2637377,0.00031921,3]
[393202603,1762314641912,-150.8199178,0.00032031,2]
[393202604,1762314641921,-158.7764836,0.00032031,2]
[393202605,1762314641930,-154.29275356,0.00032031,2]
[393202606,1762314641939,-150.0,0.00032031,2]
[393202607,1762314641948,-155.34029524,0.00032031,2]
[393202608,1762314641957,-152.42601185,0.00032031,2]
[393202609,1762314641971,-150.0,0.00032031,2]
[393202610,1762314641980,-150.8104487,0.00032031,2]
[393202611,1762314641989,-150.0,0.00032031,2]
[393202612,1762314641999,-152.72526817,0.00032031,2]
[393202613,1762314642010,-150.53676099,0.00032031,2]
[393202614,1762314642019,-500.0,0.00032031,2]
[393202615,1762314642027,-150.0,0.00032031,2]
[393202616,1762314642037,-150.59572911,0.00032031,2]
[393202617,1762314642046,-150.0,0.00032031,2]
[393202618,1762314642055,-150.50069053,0.00032031,2]
[393202619,1762314642065,-500.0,0.00032031,2]
[393202620,1762314642073,-500.0,0.00032031,2]
[393202621,1762314642082,-500.0,0.00032031,2]
[393202622,1762314642092,-213.18490842,0.00032031,2]
[393202623,1762314642101,-500.0,0.00032031,2]
[393202624,1762314642110,-500.0,0.00032031,2]
[393202625,1762314642119,-150.8351521,0.00032031,2]
[393202626,1762314642128,-150.0,0.00032031,2]
[393202627,1762314642137,-150.0,0.00032031,2]
[393202628,1762314642146,-150.42731866,0.00032031,2]
[393202629,1762314642155,-152.10989267,0.00032031,2]
[393202630,1762314642164,-150.0,0.00032031,2]
[393202631,1762314642176,-500.0,0.00032031,2]
[393202632,1762314642184,-152.84105378,0.00032031,2]
[393202633,1762314642193,-433.0,0.00032031,2]
[393202634,1762314642202,-577.0,0.00032031,2]
[393202635,1762314642211,-500.0,0.00032031,2]
[393202636,1762314642220,-150.0,0.00032031,2]
[393202637,1762314642229,-150.0,0.00032031,2]
[393202638,1762314642238,-500.0,0.00032031,2]
[393202639,1762314642247,-150.0,0.00032031,2]
[393202640,1762314642255,-150.0,0.00032031,2]
[393202641,1762314642265,-150.0,0.00032031,2]
[393202642,1762314642274,-500.0,0.00032031,2]
[393202643,1762314642283,-15907.2637377,0.00032045,3]
[393202644,1762314642292,-658.586667,0.00032054,6]
[393202645,1762314642301,-4759.82297,0.00032054,6]
[393202646,1762314642310,-416.1951,0.00032054,6]
[393202647,1762314642319,-4728.034428,0.00032054,6]
[393202648,1762314642328,-6856.848757,0.00032054,6]
[393202649,1762314642339,-15907.2637377,0.00032091,3]
[393202650,1762314642348,-477.76462643,0.00032091,3]
[393202651,1762314642357,-9726.35,0.00032101,2]
[393202652,1762314642366,-500.0,0.00032101,2]
[393202653,1762314642376,-164.7,0.00032151,30]
[393202654,1762314642385,-9984.8933,0.00032165,2]
[393202655,1762314642394,-13052.46872369,0.00032167,2]
[393202656,1762314642403,-150.0,0.00032168,2]
[393202657,1762314642415,-150.82628027,0.00032168,2]
[393202658,1762314642424,-154.29458154,0.00032168,2]
[393202659,1762314642434,-511.82257501,0.00032168,2]
[393202660,1762314642443,-152.83385556,0.00032168,2]
[393202661,1762314642454,-150.0,0.00032168,2]
[393202662,1762314642465,-500.0,0.00032168,2]
[393202663,1762314642474,-500.0,0.00032168,2]
[393202664,1762314642483,-150.0,0.00032168,2]
[393202665,1762314642492,-150.0,0.00032168,2]
[393202666,1762314642501,-150.0,0.00032168,2]
[393202667,1762314642511,-500.0,0.00032168,2]
[393202668,1762314642520,-433.0,0.00032168,2]
[393202669,1762314642529,-577.0,0.00032168,2]
[393202670,1762314642539,-500.0,0.00032168,2]
[393202671,1762314642548,-150.0,0.00032168,2]
[393202672,1762314642557,-500.0,0.00032168,2]
[393202673,1762314642566,-150.0,0.00032168,2]
[393202675,1762314642575,-500.0,0.00032168,2]
[393202676,1762314642586,-675.87598404,0.00032173,5]
[393202677,1762314642595,-13034.191322,0.00032235,3]
[393202678,1762314642605,-31814.5274754,0.00032246,3]
[393202679,1762314642614,-13034.191322,0.00032246,3]
[393202680,1762314642624,-500.0,0.00032255,120]
[393202681,1762314642633,-500.0,0.00032255,2]
[393202682,1762314642642,-500.0,0.00032255,120]
[393202683,1762314642651,-47721.7912132,0.00032255,3]
[393202684,1762314642660,-52136.7652878,0.00032255,3]
[393202685,1762314642669,-500.0,0.00032265,120]
[393202686,1762314642678,-95891.94,0.00032265,2]
[393202687,1762314642688,-564.89446183,0.00032273,5]
[393202688,1762314642696,-500.0,0.00032273,5]
[393202689,1762314642705,-500.0,0.00032273,5]
[393202690,1762314642715,-500.0,0.00032273,5]
[393202691,1762314642724,-172.37102183,0.00032273,5]
[393202692,1762314642734,-13034.191322,0.00032281,3]
[393202693,1762314642743,-15907.2637377,0.00032291,3]
[393202694,1762314642752,-13034.191322,0.00032295,3]
[393202695,1762314642761,-156.083285,0.00032301,6]
[393202696,1762314642771,-658.586667,0.00032301,6]
[393202697,1762314642780,-4759.82297,0.00032301,6]
[393202699,1762314642789,-416.1951,0.00032301,6]
[393202701,1762314642799,-4728.034428,0.00032301,6]
[393202703,1762314642808,-6856.848757,0.00032301,6]
[393202705,1762314642817,-159.94877796,0.00032305,2]
[393202706,1762314642826,-500.0,0.00032305,2]
[393202708,1762314642835,-500.0,0.00032305,2]
[393202709,1762314642844,-150.0,0.00032305,2]
[393202710,1762314642853,-150.0,0.00032305,2]
[393202711,1762314642863,-150.0,0.00032305,2]
[393202712,1762314642872,-500.0,0.00032305,2]
[393202713,1762314642881,-433.0,0.00032305,2]
[393202714,1762314642891,-577.0,0.00032305,2]
[393202715,1762314642900,-505.2099742,0.00032305,2]
[393202716,1762314642909,-213.05879372,0.00032305,2]
[393202717,1762314642918,-382.43398182,0.00032305,2]
[393202718,1762314642927,-150.0,0.00032305,2]
[393202719,1762314642937,-500.0,0.00032305,2]
[393202720,1762314642946,-152.0,0.0003244,7]
[393202721,1762314642957,-500.0,0.00032442,2]
[393202722,1762314642971,-500.0,0.00032442,2]
[393202723,1762314642980,-158.74802862,0.00032442,2]
[393202724,1762314642989,-215.68751895,0.00032442,2]
[393202725,1762314642998,-150.0,0.00032442,2]
[393202726,1762314643008,-500.0,0.00032442,2]
[393202727,1762314643018,-433.0,0.00032442,2]
[393202728,1762314643026,-577.0,0.00032442,2]
[393202729,1762314643036,-294.52143738,0.00032442,2]
[393202730,1762314643046,-261.70059104,0.00032442,2]
[393202731,1762314643055,-675.87598402,0.00032475,5]
[393202732,1762314643064,-864.39,0.00032493,2]
[393202733,1762314643073,-13034.191322,0.00032549,3]
[393202734,1762314643084,-15907.2637377,0.00032559,3]
[393202735,1762314643093,-500.0,0.00032579,2]
[393202736,1762314643102,-500.0,0.00032579,2]
[393202737,1762314643111,-203.09765029,0.00032579,2]
[393202738,1762314643120,-500.0,0.00032579,2]
[393202739,1762314643129,-433.0,0.00032579,2]
[393202740,1762314643139,-577.0,0.00032579,2]
[393202741,1762314643148,-383.63882527,0.00032586,15]
[393202742,1762314643157,-940.02202175,0.00032599,30]
[393202743,1762314643166,-5515.0,0.000326,5]
[393202744,1762314643175,-13034.191322,0.00032611,3]
[393202745,1762314643184,-500.0,0.00032716,2]
[393202746,1762314643193,-487.04730745,0.00032716,2]
[393202747,1762314643202,-487.30061184,0.00032716,2]
[393202748,1762314643211,-433.0,0.00032716,2]
[393202749,1762314643220,-577.0,0.00032716,2]
[393202750,1762314643230,-675.87598402,0.00032776,6]
[393202751,1762314643239,-15907.2637377,0.000328,3]
[393202752,1762314643247,-13034.191322,0.000328,3]
[393202753,1762314643256,-15907.2637377,0.00032811,3]
[393202754,1762314643265,-500.87783296,0.00032821,5]
[393202755,1762314643274,-1011.48394637,0.00032821,5]
[393202756,1762314643282,-1000.0,0.00032821,5]
[393202757,1762314643291,-26068.3826439,0.00032846,3]
[393202758,1762314643301,-13034.191322,0.00032847,3]
[393202759,1762314643309,-894.56065585,0.00032847,2]
[393202760,1762314643319,-381.56336037,0.00032853,2]
[393202761,1762314643330,-433.0,0.00032853,2]
[393202762,1762314643340,-577.0,0.00032853,2]
[393202763,1762314643349,-47721.7912132,0.00032856,3]
[393202764,1762314643358,-13034.191322,0.00032856,3]
[393202765,1762314643367,-150.41,0.00032856,2]
[393202766,1762314643376,-13034.191322,0.00032857,3]
[393202767,1762314643385,-15907.2637377,0.00032857,3]
[393202768,1762314643395,-151.0,0.00032863,14]
[393202769,1762314643404,-554.69671231,0.00032865,120]
[393202770,1762314643413,-500.0,0.00032865,2]
[393202771,1762314643422,-220.07510407,0.00032865,120]
[393202772,1762314643432,-47721.7912132,0.00032866,3]
[393202773,1762314643441,-65170.9566097,0.00032866,3]
[393202774,1762314643450,-150.41,0.00032866,2]
[393202775,1762314643459,-15907.2637377,0.00032867,3]
[393202776,1762314643469,-13034.191322,0.00032867,3]
[393202777,1762314643478,-501.4824196,0.00032873,5]
[393202779,1762314643487,-500.20791126,0.00032873,5]
[393202780,1762314643496,-500.0,0.00032873,5]
[393202782,1762314643506,-500.0,0.00032873,5]
[393202783,1762314643515,-211.91475997,0.00032873,5]
[393202785,1762314643526,-500.0,0.00032875,2]
[393202786,1762314643535,-1000.0,0.00032876,2]
[393202787,1762314643544,-1000.0,0.00032876,2]
[393202788,1762314643553,-1000.0,0.00032876,2]
[393202789,1762314643563,-1000.0,0.00032876,2]
[393202790,1762314643573,-1000.0,0.00032876,2]
[393202791,1762314643582,-250.79016794,0.00032876,2]
[393202792,1762314643592,-500.0,0.00032876,10]
[393202793,1762314643602,-500.0,0.00032876,10]
[393202794,1762314643611,-500.0,0.00032876,10]
[393202795,1762314643620,-500.0,0.00032876,10]
[393202796,1762314643629,-500.0,0.00032876,10]
[393202797,1762314643639,-500.0,0.00032876,10]
[393202798,1762314643647,-500.0,0.00032876,10]
[393202799,1762314643657,-500.0,0.00032876,10]
[393202800,1762314643666,-500.0,0.00032876,10]
[393202801,1762314643676,-171.45858457,0.00032876,10]
[393202802,1762314643685,-500.0,0.00032876,2]
[393202803,1762314643695,-500.0,0.00032876,2]
[393202804,1762314643705,-500.0,0.00032876,2]
[393202805,1762314643715,-500.0,0.00032876,2]
[393202806,1762314643725,-500.0,0.00032876,2]
[393202807,1762314643734,-402.19211532,0.00032876,2]
[393202808,1762314643744,-502.05799969,0.00032876,120]
[393202809,1762314643753,-500.0,0.00032876,120]
[393202810,1762314643762,-507.33791597,0.00032876,120]
[393202811,1762314643771,-500.0,0.00032876,2]
[393202812,1762314643780,-500.0,0.00032876,2]
[393202813,1762314643790,-500.0,0.00032876,2]
[393202814,1762314643799,-500.0,0.00032876,2]
[393202815,1762314643809,-500.0,0.00032876,2]
[393202816,1762314643818,-500.0,0.00032876,2]
[393202817,1762314643828,-500.0,0.00032876,2]
[393202818,1762314643839,-500.0,0.00032876,2]
[393202819,1762314643850,-500.0,0.00032876,2]
[393202820,1762314643859,-500.0,0.00032876,2]
[393202821,1762314643868,-500.0,0.00032876,2]